bitfinex-derivatives/quotes_SOLF0:USTF0_20240920
["timestamp","ask_amount","ask_price","bid_price","bid_amount"]
[1726849369566,14.65,147.61,147.5,14.65]
[1726849369761,3.3874,147.59,147.54,3.3882]
[1726849370460,3.3875,147.58,147.54,3.3882]
[1726849370957,3.3875,147.58,147.5,17.98616438]
[1726849371462,3.3875,147.58,147.53,3.3884]
[1726849371867,3.3875,147.58,147.5,17.98616438]
[1726849371868,3.3881,147.56,147.5,3.33616438]
[1726849372165,3.3881,147.56,147.48,15.965]
[1726849372369,3.388,147.56,147.51,3.3889]
[1726849372551,3.388,147.56,147.48,15.965]
[1726849373058,3.3878,147.57,147.48,15.965]
[1726849373373,20.37,147.66,147.54,3.3882]
[1726849373374,14.65,147.61,147.54,3.3882]
[1726849373564,3.3874,147.59,147.54,3.3882]
[1726849373769,14.65,147.61,147.54,3.3882]
[1726849374473,14.65,147.61,147.53,3.3885]
[1726849374668,10.20867671,147.68,147.53,14.65]
[1726849374964,14.65,147.64,147.53,18.04647407]
[1726849375161,3.3868,147.61,147.54,17.3844]
[1726849375370,14.65,147.64,147.54,17.3844]
[1726849375569,14.65,147.64,147.57,3.3875]
[1726849376074,14.65,147.64,147.56,3.3878]
[1726849376364,14.65,147.64,147.54,6.19355215]
[1726849376871,3.3867,147.61,147.57,3.3875]
[1726849377166,14.65,147.64,147.54,20.84355215]
[1726849377562,3.3865,147.63,147.59,3.3872]
[1726849377962,3.3866,147.62,147.58,3.3873]
[1726849378169,14.65,147.66,147.56,14.65]
[1726849378562,3.3866,147.62,147.58,3.3873]
[1726849378960,14.65,147.64,147.55,1.3463]
[1726849380273,14.65,147.66,147.56,14.65]
[1726849380481,17.98108591,147.68,147.58,14.65]
[1726849380881,3.3858,147.65,147.58,14.65]
[1726849381462,14.65,147.68,147.6,3.3868]
[1726849381667,14.65,147.68,147.58,14.65]
[1726849381970,14.65,147.68,147.55,1.3463]
[1726849381971,14.65,147.71,147.6,14.65]
[1726849382171,14.65,147.71,147.62,14.65]
[1726849382479,14.65,147.71,147.65,3.3857]
[1726849382878,3.3851,147.69,147.65,3.3857]
[1726849383174,3.3851,147.69,147.66,3.3856]
[1726849384162,3.3852,147.68,147.64,3.3858]
[1726849384372,14.65,147.73,147.62,19.3893756]
[1726849384579,14.65,147.75,147.66,14.65]
[1726849384773,3.3844,147.72,147.68,3.3849]
[1726849385171,3.3844,147.72,147.66,14.65]
[1726849386080,3.3841,147.73,147.69,3.3848]
[1726849386275,14.65,147.75,147.69,3.3848]
[1726849386578,3.3841,147.73,147.7,3.3846]
[1726849386980,14.65,147.77,147.68,14.65]
[1726849387184,3.3837,147.75,147.68,14.65]
[1726849387372,3.3837,147.75,147.69,2.6952]
[1726849387570,14.65,147.77,147.69,2.6952]
[1726849388469,3.3837,147.75,147.72,3.3841]
[1726849388671,14.65,147.79,147.69,2.6952]
[1726849388977,3.35684589,147.83,147.7,14.65]
[1726849389184,14.65,147.82,147.72,14.65]
[1726849389479,14.65,147.82,147.75,3.3835]
[1726849389480,18.02587252,147.82,147.75,3.3835]
[1726849389675,18.02587252,147.82,147.72,14.65]
[1726849389983,3.3834,147.76,147.73,3.3838]
[1726849392083,14.65,147.77,147.7,1.2913]
[1726849392583,3.3838,147.74,147.71,3.3843]
[1726849392784,14.65,147.77,147.7,1.2913]
[1726849393083,3.3839,147.74,147.7,4.6758]
[1726849393481,3.3839,147.74,147.7,1.2913]
[1726849394784,3.3836,147.75,147.7,1.2913]
[1726849395278,14.65,147.77,147.72,3.3842]
[1726849395677,14.65,147.79,147.72,3.3842]
[1726849395888,14.65,147.79,147.73,3.384]
[1726849396476,3.34168556,147.82,147.74,14.65]
[1726849396671,14.65,147.84,147.77,3.3831]
[1726849397378,3.3824,147.8,147.77,3.3831]
[1726849397580,14.65,147.84,147.7,4.74826771]
[1726849397581,14.65,147.86,147.76,14.65]
[1726849397781,3.3825,147.8,147.75,1.2956]
[1726849398278,3.3822,147.81,147.75,1.2956]
[1726849398474,14.65,147.86,147.76,14.65]
[1726849399080,14.65,147.86,147.78,14.65]
[1726849399279,14.65,147.88,147.78,14.65]
[1726849399481,3.3814,147.85,147.79,3.32871419]
[1726849399684,14.65,147.88,147.79,3.32871419]
[1726849399886,3.3815,147.84,147.81,3.382]
[1726849400583,18.03352734,147.88,147.8,3.3822]
[1726849400785,18.03352734,147.88,147.78,14.65]
[1726849400984,18.03352734,147.88,147.79,3.33198528]
[1726849401193,18.03352734,147.88,147.81,3.3821]
[1726849401595,3.3815,147.85,147.81,3.3821]
[1726849402193,3.3811,147.86,147.8,14.65]
[1726849402492,14.65,147.9,147.84,3.3815]
[1726849402681,3.3812,147.86,147.8,18.09664806]
[1726849403080,14.65,147.9,147.8,18.09664806]
[1726849403682,14.65,147.9,147.83,3.3816]
[1726849403683,3.3811,147.86,147.83,3.3816]
[1726849404595,14.65,147.92,147.82,14.65]
[1726849404890,14.65,147.92,147.83,17.3082]
[1726849405091,14.65,147.94,147.83,17.3082]
[1726849405301,14.65,147.96,147.85,14.65]
[1726849405594,3.3796,147.93,147.85,14.65]
[1726849405980,14.65,147.96,147.85,14.65]
[1726849406888,3.3798,147.92,147.88,3.3804]
[1726849408090,3.3798,147.92,147.83,2.6582]
[1726849408091,14.65,147.92,147.83,2.6582]
[1726849408396,3.31315803,147.97,147.83,2.6582]
[1726849408693,14.65,147.94,147.88,3.3804]
[1726849408891,14.65,147.94,147.83,17.3082]
[1726849409892,14.65,147.94,147.88,3.3804]
[1726849410390,14.65,147.94,147.85,14.65]
[1726849411695,3.38,147.91,147.85,14.65]
[1726849414295,3.38,147.91,147.87,3.3807]
[1726849414593,3.3801,147.9,147.87,3.3807]
[1726849414990,17.95031911,147.96,147.85,14.65]
[1726849414991,17.95031911,147.96,147.88,3.3805]
[1726849415187,17.95031911,147.96,147.85,14.65]
[1726849415698,3.3798,147.92,147.85,14.65]
[1726849415992,3.3798,147.92,147.89,3.3802]
[1726849416498,17.95031911,147.96,147.89,3.3802]
[1726849416499,3.3799,147.91,147.89,3.3802]
[1726849416694,3.3799,147.91,147.88,3.3805]
[1726849417291,3.3801,147.9,147.88,3.3805]
[1726849417690,17.95031911,147.96,147.88,3.3805]
[1726849418098,17.95031911,147.96,147.85,14.65]
[1726849418297,20.37,148.02,147.87,14.65]
[1726849418600,14.65,147.99,147.89,14.65]
[1726849419800,14.65,147.99,147.9,3.34381703]
[1726849420002,14.65,147.99,147.89,14.65]
[1726849420509,14.65,147.99,147.9,3.46381855]
[1726849420710,14.65,147.99,147.89,14.65]
[1726849420906,14.65,147.97,147.87,14.65]
[1726849421296,3.3796,147.93,147.87,14.65]
[1726849421490,14.65,147.97,147.87,14.65]
[1726849421899,14.65,147.97,147.9,3.3801]
[1726849422397,14.65,147.97,147.87,14.65]
[1726849422799,3.3796,147.93,147.89,3.3802]
[1726849423100,14.65,147.95,147.85,14.65]
[1726849423607,14.65,147.93,147.83,152.5482]
[1726849423903,3.3803,147.9,147.86,3.3809]
[1726849424103,3.45333955,147.93,147.86,3.3809]
[1726849424290,14.65,147.93,147.86,3.3809]
[1726849424805,3.3805,147.89,147.86,3.3809]
[1726849425302,14.65,147.93,147.85,3.3811]
[1726849425609,3.39181764,147.94,147.85,14.65]
[1726849425918,3.3798,147.92,147.88,3.3805]
[1726849426395,3.43791114,147.94,147.88,3.3805]
[1726849426710,14.65,147.95,147.88,3.3805]
[1726849427092,3.3798,147.92,147.89,3.3803]
[1726849427293,14.65,147.97,147.87,14.65]
[1726849427698,3.3795,147.93,147.87,14.65]
[1726849428304,27.1256,148.01,147.89,14.65]
[1726849428305,14.65,147.99,147.89,14.65]
[1726849428498,14.65,147.99,147.89,17.3335]
[1726849429101,20.37,148.04,147.91,14.65]
[1726849429295,14.65,148.01,147.91,18.02300662]
[1726849429502,3.3785,147.97,147.94,3.3791]
[1726849430605,3.3787,147.96,147.93,3.3793]
[1726849430807,14.65,147.99,147.89,17.3335]
[1726849431111,14.65,147.99,147.9,3.3526019]
[1726849431912,3.3791,147.95,147.92,3.3795]
[1726849432107,14.65,147.99,147.92,3.3795]
[1726849432508,14.65,147.99,147.9,3.3526019]
[1726849432509,14.65,147.99,147.91,3.3798]
[1726849433019,14.65,147.99,147.93,3.3793]
[1726849433213,14.65,148.01,147.91,14.65]
[1726849434012,3.3789,147.96,147.91,14.65]
[1726849434216,3.3789,147.96,147.93,3.3794]
[1726849435801,14.65,148.01,147.94,3.3792]
[1726849435802,3.3786,147.97,147.94,3.3792]
[1726849436408,14.65,148.01,147.94,3.3792]
[1726849437518,3.3788,147.96,147.93,3.3793]
[1726849437923,14.65,147.99,147.9,3.3526019]
[1726849439007,3.3791,147.95,147.89,17.3335]
[1726849439215,3.3791,147.95,147.91,14.65]
[1726849439519,3.3791,147.95,147.92,3.3796]
[1726849440210,14.65,147.99,147.92,3.3796]
[1726849440719,14.65,147.99,147.93,3.3793]
[1726849441014,3.3789,147.96,147.93,3.3793]
[1726849441224,14.65,147.99,147.93,3.3793]
[1726849441525,14.65,147.99,147.92,3.3795]
[1726849441914,14.65,147.97,147.89,2.6835]
[1726849442117,3.36916213,148.0,147.85,135.2]
[1726849442118,14.65,147.93,147.85,135.2]
[1726849442722,14.65,147.95,147.85,135.2]
[1726849443218,14.65,147.95,147.86,14.65]
[1726849443411,14.65,147.97,147.86,15.9353]
[1726849443818,14.65,147.97,147.9,3.38]
[1726849444028,17.96722301,147.97,147.9,3.38]
[1726849444221,3.3788,147.96,147.88,14.65]
[1726849444409,14.65,147.97,147.88,14.65]
[1726849444614,14.65,147.97,147.89,2.5924]
[1726849444824,3.3792,147.94,147.91,3.3797]
[1726849445121,3.32905575,147.98,147.89,2.5924]
[1726849445427,3.3792,147.94,147.9,17.9472764]
[1726849445818,3.3797,147.92,147.89,5.9727]
[1726849446017,14.65,147.95,147.89,2.5924]
[1726849447320,3.3805,147.89,147.86,4.6661]
[1726849448220,3.3802,147.9,147.87,3.3808]
[1726849448616,3.3802,147.9,147.86,1.2853]
[1726849449023,3.3802,147.9,147.87,3.3806]
[1726849449234,14.65,147.93,147.86,1.2853]
[1726849449420,20.37,148.01,147.86,15.9353]
[1726849449724,3.3794,147.93,147.88,14.65]
[1726849449925,3.3794,147.93,147.9,3.38]
[1726849451324,3.379,147.95,147.89,2.7066]
[1726849451520,14.65,148.0,147.9,17.95979233]
[1726849452028,14.65,147.98,147.89,2.7066]
[1726849452428,3.3792,147.94,147.91,3.3797]
[1726849453622,18.04923889,148.0,147.9,18.05363198]
[1726849454032,14.65,148.03,147.94,14.65]
[1726849454226,3.3782,147.99,147.96,3.3787]
[1726849454428,3.40092854,148.02,147.96,3.3787]
[1726849454927,14.65,148.06,147.96,14.65]
[1726849455723,3.3775,148.02,147.99,3.378]
[1726849455931,3.3775,148.02,147.95,2.7538]
[1726849455932,14.65,148.08,147.98,14.65]
[1726849456522,3.3771,148.04,147.98,14.65]
[1726849456928,14.65,148.08,147.98,14.65]
[1726849457731,3.3775,148.02,147.99,3.3779]
[1726849457927,14.65,148.08,147.98,14.65]
[1726849458131,14.65,148.05,147.96,14.65]
[1726849458530,14.65,148.08,147.98,14.65]
[1726849458745,3.3773,148.03,148.0,3.3777]
[1726849458938,14.65,148.08,147.98,14.65]
[1726849459247,3.3777,148.01,147.98,3.3781]
[1726849459830,3.3776,148.01,147.96,14.65]
[1726849460333,14.65,148.06,147.96,14.65]
[1726849460632,3.3775,148.02,147.99,3.3779]
[1726849461129,3.3769,148.05,148.02,3.3772]
[1726849461319,14.65,148.1,148.0,14.65]
[1726849461524,18.04864658,148.1,148.0,14.65]
[1726849461728,3.377,148.04,148.01,3.3775]
[1726849461925,14.65,148.08,148.0,14.65]
[1726849462130,18.04864658,148.1,148.0,14.65]
[1726849462332,3.3769,148.04,148.01,3.3775]
[1726849463035,3.3776,148.02,147.95,2.7538]
[1726849463224,14.65,148.08,147.97,14.65]
[1726849463422,35.02,148.08,147.97,14.65]
[1726849463622,14.65,148.06,147.97,14.65]
[1726849464023,3.3785,147.99,147.95,6.133]
[1726849464324,14.65,148.04,147.95,2.7538]
[1726849464928,14.65,148.02,147.95,2.7538]
[1726849465327,3.3787,147.98,147.95,6.1331]
[1726849465638,3.3787,147.98,147.95,2.7538]
[1726849465834,3.3791,147.96,147.95,2.7538]
[1726849466041,3.37906328,148.01,147.95,2.7538]
[1726849466332,3.3788,147.98,147.95,2.7538]
[1726849466837,14.65,148.02,147.95,2.7538]
[1726849467140,14.65,148.02,147.96,3.3789]
[1726849467833,14.65,148.02,147.95,6.133]
[1726849468029,3.3784,147.99,147.95,6.133]
[1726849468428,14.65,148.0,147.92,135.18]
[1726849468824,14.65,148.0,147.92,138.5598]
[1726849469234,3.3792,147.96,147.92,138.5598]
[1726849469927,3.3792,147.96,147.93,3.3797]
[1726849470133,3.3789,147.97,147.93,3.3797]
[1726849471233,18.03323758,148.0,147.93,3.3797]
[1726849471632,14.65,147.98,147.88,14.65]
[1726849472039,14.65,147.96,147.88,14.65]
[1726849472539,3.3797,147.94,147.9,3.3803]
[1726849473439,3.3797,147.94,147.91,3.3802]
[1726849473641,14.65,147.94,147.86,2.685]
[1726849473826,14.65,147.94,147.88,3.3809]
[1726849474335,3.3803,147.91,147.88,3.3809]
[1726849476040,14.65,147.94,147.87,3.37503381]
[1726849476241,3.37909115,147.95,147.87,3.37503381]
[1726849476441,3.37909115,147.95,147.92,3.3798]
[1726849476640,14.65,147.98,147.89,14.65]
[1726849477038,3.379,147.97,147.93,3.3796]
[1726849477242,14.65,147.98,147.89,14.65]
[1726849477635,3.3792,147.96,147.92,3.3798]
[1726849477848,14.65,148.0,147.89,14.65]
[1726849478143,18.06662158,148.0,147.9,1.335]
[1726849478345,14.65,147.98,147.93,3.3798]
[1726849479931,3.379,147.97,147.93,3.3796]
[1726849480138,3.379,147.97,147.9,1.335]
[1726849481345,3.379,147.97,147.94,3.3795]
[1726849482041,3.379,147.97,147.93,3.3797]
[1726849483239,14.65,147.98,147.92,3.38]
[1726849483441,14.65,147.98,147.9,1.335]
[1726849483843,3.3792,147.96,147.9,1.335]
[1726849484552,3.379,147.97,147.94,3.3795]
[1726849485750,3.3792,147.96,147.9,1.335]
[1726849486449,3.3792,147.96,147.93,1.1796]
[1726849487443,3.3792,147.96,147.94,3.3795]
[1726849488154,3.3792,147.96,147.93,4.5593]
[1726849488352,3.3792,147.96,147.93,1.1796]
[1726849488953,3.3792,147.96,147.93,4.5593]
[1726849490649,14.65,147.98,147.93,1.1796]
[1726849490847,14.65,147.96,147.93,1.1796]
[1726849491346,3.3794,147.95,147.93,1.1796]
[1726849492352,3.3794,147.95,147.93,4.5593]
[1726849492757,3.3792,147.96,147.94,3.3794]
[1726849492951,14.65,147.98,147.93,1.1796]
[1726849493339,3.379,147.97,147.94,3.3793]
[1726849493953,14.65,148.02,147.93,15.8296]
[1726849494252,14.65,148.04,147.94,17.3045]
[1726849494462,3.3778,148.02,147.95,3.43878861]
[1726849494942,3.3778,148.02,147.96,1.3866]
[1726849495553,14.65,148.04,148.0,3.3781]
[1726849495754,3.3775,148.03,147.96,1.3866]
[1726849496353,3.3773,148.04,147.96,16.0366]
[1726849496657,14.65,148.08,148.02,3.3775]
[1726849496849,3.3771,148.05,148.02,3.3775]
[1726849497052,14.65,148.06,147.96,16.0366]
[1726849497244,155.57,148.11,147.99,3.3783]
[1726849497245,14.65,148.04,147.99,3.3783]
[1726849497641,3.3778,148.02,147.96,1.3866]
[1726849497842,14.65,148.04,148.0,3.3781]
[1726849498356,3.3777,148.03,148.0,3.3781]
[1726849498951,3.32297644,148.06,147.96,1.3866]
[1726849498952,14.65,148.06,147.96,16.0366]
[1726849499360,3.39414666,148.07,147.98,14.65]
[1726849499558,14.65,148.08,147.98,14.65]
[1726849499952,3.3772,148.05,148.02,3.3776]
[1726849500458,3.3772,148.05,147.96,1.3866]
[1726849500459,14.65,148.06,147.96,16.0366]
[1726849500663,14.65,148.04,147.96,1.3866]
[1726849501049,3.3779,148.02,147.98,3.3785]
[1726849501351,14.65,148.05,147.96,19.38006915]
[1726849501553,3.29887948,148.12,148.0,14.65]
[1726849501750,15.80993865,148.11,148.01,2.7189]
[1726849501959,3.35698357,148.1,148.01,2.7189]
[1726849502160,3.3765,148.08,148.05,3.3769]
[1726849502351,3.35698357,148.1,148.01,2.7189]
[1726849503860,3.3766,148.07,148.04,3.3771]
[1726849504248,3.3766,148.07,148.01,2.7189]
[1726849504249,14.65,148.07,148.01,2.7189]
[1726849504862,14.65,148.09,148.01,2.7189]
[1726849505461,3.3767,148.07,148.04,3.3771]
[1726849506867,3.3764,148.08,148.05,3.3769]
[1726849507364,3.3766,148.07,148.05,3.3769]
[1726849508064,3.3764,148.08,148.05,3.3769]
[1726849508955,3.3766,148.07,148.05,3.3769]
[1726849510165,3.3768,148.06,148.01,2.7189]
[1726849510349,14.65,148.08,148.01,2.7189]
[1726849510967,3.3768,148.06,148.01,2.7189]
[1726849511468,3.3767,148.07,148.01,2.7189]
[1726849511954,159.8895,148.23,148.02,14.65]
[1726849512155,1.15976702,148.16,148.06,14.65]
[1726849512360,14.65,148.17,148.07,2.658]
[1726849512562,14.65,148.17,148.11,3.3756]
[1726849512968,14.65,148.15,148.07,6.05866202]
[1726849513271,14.65,148.15,148.09,3.3759]
[1726849513963,3.3753,148.13,148.1,3.3758]
[1726849515262,3.375,148.14,148.11,3.3755]
[1726849515661,3.3753,148.13,148.11,3.3755]
[1726849515964,3.37060055,148.16,148.07,2.658]
[1726849516165,3.3756,148.12,148.07,2.658]
[1726849517065,3.3756,148.12,148.09,3.3761]
[1726849517974,3.3756,148.12,148.08,3.3762]
[1726849518170,3.3756,148.12,148.07,2.658]
[1726849518471,3.41909778,148.16,148.08,14.65]
[1726849518677,14.65,148.19,148.08,16.0362]
[1726849518866,1.15926373,148.18,148.08,16.0362]
[1726849519067,3.3746,148.16,148.12,3.3753]
[1726849519268,3.3746,148.16,148.1,14.65]
[1726849519574,3.3748,148.15,148.12,3.3753]
[1726849521172,14.65,148.19,148.08,16.0362]
[1726849521377,14.65,148.15,148.08,1.3862]
[1726849521762,14.65,148.13,148.08,1.3862]
[1726849522066,14.65,148.13,148.02,14.65]
[1726849522266,3.376,148.1,148.06,3.3768]
[1726849522663,14.65,148.13,148.04,17.95509748]
[1726849522973,14.65,148.13,148.07,3.3764]
[1726849522974,3.3758,148.11,148.07,3.3764]
[1726849523382,14.65,148.13,148.07,3.3764]
[1726849523564,14.65,148.13,148.04,17.95509748]
[1726849523877,14.65,148.13,148.02,18.6589]
[1726849524663,14.65,148.11,148.02,4.0089]
[1726849524862,14.65,148.11,148.02,2.7239]
[1726849524863,14.65,148.07,148.02,2.7239]
[1726849525168,3.3779,148.02,147.98,3.3785]
[1726849525363,14.65,148.04,147.98,3.3785]
[1726849525575,3.38376263,148.06,147.98,3.31048885]
[1726849525769,14.65,148.06,147.97,2.6511]
[1726849525972,14.65,148.06,147.97,6.06761634]
[1726849526279,14.65,148.1,148.0,14.65]
[1726849526483,3.3764,148.08,148.04,3.3771]
[1726849526674,14.65,148.12,148.02,14.65]
[1726849526875,14.65,148.12,148.03,3.9624]
[1726849527875,14.65,148.12,148.06,3.3766]
[1726849528669,3.376,148.1,148.06,3.3766]
[1726849529072,3.3758,148.11,148.07,3.3764]
[1726849529375,14.65,148.12,148.07,3.3764]
[1726849529970,3.3757,148.11,148.07,3.3764]
[1726849531475,3.3759,148.1,148.07,3.3764]
[1726849532675,3.3758,148.11,148.08,3.3763]
[1726849532878,14.65,148.14,148.05,3.34819297]
[1726849533177,14.65,148.14,148.04,14.65]
[1726849533566,3.3755,148.12,148.05,3.33435048]
[1726849534766,3.3755,148.12,148.09,3.3761]
[1726849536374,3.3757,148.11,148.08,3.3762]
[1726849537980,3.3757,148.11,148.09,3.3761]
[1726849538167,3.3757,148.11,148.04,14.65]
[1726849538779,3.3757,148.11,148.05,3.44982441]
[1726849539273,14.65,148.16,148.06,14.65]
[1726849539469,14.65,148.18,148.08,14.65]
[1726849539675,3.3747,148.15,148.12,3.3754]
[1726849539878,14.65,148.18,148.12,3.3754]
[1726849540184,3.3749,148.15,148.12,3.3754]
[1726849540380,14.65,148.18,148.11,3.3756]
[1726849540588,14.65,148.16,148.11,3.3756]
[1726849540885,3.3754,148.12,148.06,14.65]
[1726849541475,3.3757,148.11,148.05,3.44138303]
[1726849541682,3.3757,148.11,148.04,14.65]
[1726849541983,3.3757,148.11,148.05,3.45566088]
[1726849542182,14.65,148.14,148.05,3.45566088]
[1726849542183,3.3759,148.1,148.05,3.45566088]
[1726849542368,14.65,148.14,148.05,3.45566088]
[1726849542569,14.65,148.14,148.04,14.65]
[1726849543170,14.65,148.14,148.09,3.376]
[1726849543790,3.3756,148.12,148.09,3.376]
[1726849544581,3.3761,148.09,148.07,3.3765]
[1726849545583,23.69298457,148.16,148.03,3.9624]
[1726849545584,14.65,148.1,148.03,3.9624]
[1726849545888,14.65,148.06,147.97,3.45095839]
[1726849546081,14.65,148.06,147.98,4.0593]
[1726849546487,18.02544784,148.06,147.98,4.0593]
[1726849546789,14.65,148.02,147.94,3.38254124]
[1726849546982,14.65,148.02,147.91,18.7093]
[1726849547182,3.3784,147.99,147.96,3.379]
[1726849547393,3.3994303,148.03,147.91,22.08137002]
[1726849547582,14.65,148.02,147.91,22.08137002]
[1726849547778,3.3783,148.0,147.96,3.379]
[1726849547978,14.65,148.02,147.93,14.65]
[1726849549077,3.3782,148.0,147.96,3.3789]
[1726849550397,3.3782,148.0,147.97,3.3788]
[1726849550581,3.3782,148.0,147.93,14.65]
[1726849550890,3.3782,148.0,147.96,3.3789]
[1726849551191,3.3786,147.99,147.91,22.08137002]
[1726849552189,3.3786,147.99,147.96,3.3789]
[1726849552387,3.3782,148.0,147.96,3.3789]
[1726849552692,3.3782,148.0,147.91,22.08137002]
[1726849552693,14.65,148.02,147.91,22.08137002]
[1726849553696,3.3782,148.0,147.91,22.08137002]
[1726849554484,3.3782,148.0,147.96,3.3789]
[1726849555390,3.3782,148.0,147.97,3.3788]
[1726849556600,3.3785,147.99,147.91,22.08137002]
[1726849557098,3.3792,147.96,147.93,3.3797]
[1726849557302,14.65,147.96,147.91,4.0593]
[1726849557595,14.65,147.96,147.91,2.77]
[1726849557899,14.65,147.96,147.91,6.15]
[1726849558102,14.65,147.96,147.91,2.77]
[1726849559094,14.65,147.96,147.91,6.1501]
[1726849559805,3.3795,147.94,147.91,6.1501]
[1726849560101,14.65,147.92,147.82,3.45264673]
[1726849560283,14.65,147.92,147.84,2.6516]
[1726849560483,3.3806,147.9,147.84,6.07631773]
[1726849561505,3.3807,147.89,147.84,2.6516]
[1726849562101,3.3807,147.89,147.86,3.3812]
[1726849562298,3.3805,147.9,147.84,5.96205906]
[1726849562497,14.65,147.92,147.84,5.96205906]
[1726849562692,14.65,147.92,147.86,3.3812]
[1726849562892,3.3808,147.89,147.84,5.96205906]
[1726849563100,3.3808,147.89,147.86,3.3812]
[1726849563491,3.3806,147.9,147.84,5.96205906]
[1726849563687,3.3806,147.9,147.87,3.381]
[1726849564114,3.38,147.93,147.84,20.61205906]
[1726849564404,14.65,147.94,147.89,3.3805]
[1726849564904,14.65,147.94,147.84,20.61205906]
[1726849564905,14.65,147.92,147.84,5.96205906]
[1726849565388,3.3806,147.9,147.87,3.381]
[1726849565703,14.65,147.92,147.85,1.1796]
[1726849566006,3.3803,147.91,147.88,3.3808]
[1726849567399,14.65,147.94,147.85,1.1796]
[1726849567595,20.37,148.0,147.86,14.65]
[1726849567793,14.65,147.97,147.86,14.65]
[1726849568298,14.65,147.97,147.88,14.65]
[1726849568602,14.65,147.97,147.92,3.3798]
[1726849568603,3.3793,147.96,147.92,3.3798]
[1726849568802,14.65,147.97,147.92,3.3798]
[1726849568994,14.65,147.94,147.9,2.633]
[1726849569497,3.3799,147.93,147.9,6.0134]
[1726849570406,14.65,147.92,147.9,2.633]
[1726849570704,14.65,147.92,147.86,2.7059]
[1726849571201,14.65,147.94,147.86,2.7059]
[1726849571592,23.77072832,147.99,147.86,2.7059]
[1726849571903,14.65,147.94,147.86,2.7059]
[1726849572110,23.77072832,147.99,147.86,2.7059]
[1726849572405,14.65,147.95,147.86,2.7059]
[1726849572796,14.65,147.93,147.86,2.7059]
[1726849573310,14.65,147.91,147.86,2.7059]
[1726849574205,3.3808,147.89,147.86,6.0871]
[1726849574607,3.3808,147.89,147.87,3.3811]
[1726849577800,18.0306,147.9,147.87,3.3811]
[1726849577996,14.65,147.9,147.86,2.7059]
[1726849578209,14.65,147.88,147.79,3.37357212]
[1726849578401,3.35734327,147.89,147.77,4.1412]
[1726849578711,14.65,147.84,147.83,3.382]
[1726849579005,14.65,147.84,147.77,7.5083482]
[1726849579308,14.65,147.84,147.82,3.3822]
[1726849580600,23.8141526,147.89,147.77,4.1412]
[1726849580811,14.65,147.8,147.77,4.1412]
[1726849581011,3.4353596,147.85,147.79,3.3828]
[1726849581201,14.65,147.82,147.79,3.3828]
[1726849581599,3.3826,147.81,147.78,3.3831]
[1726849583016,14.65,147.84,147.77,4.1412]
[1726849584220,3.3823,147.82,147.79,3.3827]
[1726849584514,3.3823,147.82,147.77,4.1412]
[1726849584515,14.65,147.86,147.77,7.50769238]
[1726849584710,14.65,147.86,147.83,3.382]